bitfinex/quotes_ETHUSD_20260203
["timestamp","ask_amount","ask_price","bid_price","bid_amount"]
[1770076801040,12.835067,2349.8,2348.8,1.21857373]
[1770076801710,12.835067,2349.8,2348.8,13.40331104]
[1770076801942,12.835067,2349.8,2348.9,0.001]
[1770076803440,12.835067,2349.8,2348.6,12.18473731]
[1770076804356,12.835067,2349.8,2348.8,12.18473731]
[1770076804667,14.24694637,2349.7,2348.8,12.18473731]
[1770076804841,14.24694637,2349.7,2348.9,0.001]
[1770076805556,14.66607581,2349.7,2348.5,0.001]
[1770076805762,14.66607581,2349.7,2348.6,0.001]
[1770076805952,14.66607581,2349.7,2348.6,13.25019588]
[1770076806154,1.57299984,2349.6,2348.7,13.9356572]
[1770076806344,12.835067,2349.7,2348.9,12.18473731]
[1770076807039,12.835067,2349.9,2349.1,12.18473731]
[1770076807941,12.835067,2349.9,2349.0,0.001]
[1770076808150,0.0011,2349.8,2349.0,12.18573731]
[1770076808463,0.0011,2349.8,2349.1,12.18473731]
[1770076808766,12.836167,2349.8,2349.1,13.2013607]
[1770076809058,12.836167,2349.8,2349.1,1.01662339]
[1770076809261,12.836167,2349.8,2349.2,0.001]
[1770076810263,0.0011,2349.8,2349.2,0.001]
[1770076810763,0.0011,2350.0,2349.2,0.001]
[1770076811662,0.0011,2350.4,2349.6,0.01278445]
[1770076812047,0.0011,2350.4,2349.7,0.001]
[1770076812643,12.836167,2350.4,2349.7,0.001]
[1770076812864,14.1197837,2350.4,2349.2,0.01278445]
[1770076813053,14.1197837,2350.4,2349.4,1.06409848]
[1770076813258,14.1197837,2350.4,2349.5,1.06405348]
[1770076813444,14.1197837,2350.4,2349.6,1.06400371]
[1770076813644,0.0011,2350.4,2349.6,1.06400371]
[1770076813867,0.0011,2350.4,2349.7,0.001]
[1770076815166,0.0011,2350.4,2349.7,12.18573731]
[1770076816772,12.836167,2350.4,2349.7,0.001]
[1770076816938,0.0011,2350.4,2349.8,12.18573731]
[1770076817145,0.0011,2350.4,2349.9,1.32496942]
[1770076817982,0.0011,2350.4,2349.8,0.001]
[1770076818781,0.0011,2350.4,2349.3,1.06413443]
[1770076818951,12.835067,2350.3,2349.3,13.24987174]
[1770076819559,0.0011,2350.4,2349.3,13.24987174]
[1770076819766,0.0011,2350.4,2349.8,12.18473731]
[1770076820477,0.0011,2350.4,2350.0,11.79843306]
[1770076820843,0.0011,2350.2,2350.0,11.79843306]
[1770076822483,0.0011,2350.2,2350.0,12.86222994]
[1770076822681,0.17274271,2350.8,2350.1,0.01378445]
[1770076822858,0.0011,2351.0,2350.5,11.79843306]
[1770076823059,0.0011,2351.2,2350.7,11.81121751]
[1770076823409,0.0011,2351.4,2350.9,11.79843306]
[1770076823851,0.0011,2351.4,2351.0,0.001]
[1770076825849,0.0011,2351.4,2350.7,11.79843306]
[1770076826051,11.70775359,2351.4,2350.3,12.86209221]
[1770076826451,11.70775359,2351.4,2350.4,12.86308046]
[1770076826774,11.70775359,2351.4,2350.4,12.86307822]
[1770076827152,12.77095894,2351.4,2350.4,12.86307822]
[1770076827354,11.70775359,2351.4,2350.4,12.86307822]
[1770076827571,13.40754874,2351.4,2350.5,1.71178525]
[1770076828394,14.47074756,2351.4,2350.5,1.71178525]
[1770076829588,14.47074756,2351.4,2350.6,0.001]
[1770076829887,11.70665359,2351.2,2350.4,0.001]
[1770076830059,11.70665359,2351.2,2350.2,1.06473861]
[1770076830261,11.70665359,2351.2,2350.2,12.86317167]
[1770076830582,13.15387365,2351.2,2350.3,1.77407616]
[1770076831089,1.70234823,2351.4,2350.5,12.86202647]
[1770076831268,12.76978307,2351.6,2350.5,12.86202647]
[1770076831465,11.70665359,2351.6,2350.7,11.79843306]
[1770076833292,0.84857478,2351.8,2350.9,11.79843306]
[1770076833595,11.70665359,2351.9,2350.9,11.79843306]
[1770076833596,12.76965782,2351.9,2350.9,11.79843306]
[1770076833903,12.76965782,2351.9,2351.0,0.001]
[1770076834190,0.0011,2351.2,2351.0,0.99446712]
[1770076834965,0.0001,2351.2,2351.0,11.79843306]
[1770076837098,0.0001,2351.2,2350.7,0.892]
[1770076837394,12.77007823,2351.2,2350.1,12.86219999]
[1770076837597,12.77007823,2351.2,2350.0,1.87626405]
[1770076838185,12.77007823,2351.2,2350.0,2.94007727]
[1770076838803,1.70231108,2351.1,2350.1,1.89939714]
[1770076838978,11.70665359,2351.0,2350.1,1.89939714]
[1770076839406,1.70231108,2351.1,2350.1,14.76161138]
[1770076839767,1.06341963,2351.2,2350.2,11.79843306]
[1770076840201,12.77007322,2351.2,2350.2,11.79843306]
[1770076842708,12.77007322,2351.2,2350.0,1.87626405]
[1770076843068,0.49153777,2351.1,2350.0,1.87626405]
[1770076843271,11.70665359,2351.0,2350.0,1.87626405]
[1770076843484,11.70665359,2350.8,2350.0,1.87626405]
[1770076844593,1.06351299,2350.7,2350.0,1.87626405]
[1770076846009,1.06351299,2350.7,2350.4,0.001]
[1770076846909,12.77016658,2350.7,2350.0,1.87626405]
[1770076848485,11.70665359,2350.7,2350.0,1.87626405]
[1770076848690,13.42467686,2350.7,2350.0,1.87626405]
[1770076849379,14.4881978,2350.7,2350.0,1.87626405]
[1770076853603,14.4881978,2350.7,2349.8,0.001]
[1770076853904,11.94981365,2350.5,2349.2,12.53151372]
[1770076855410,11.94981365,2350.3,2349.2,0.001]
[1770076855618,11.94981365,2350.1,2349.2,0.001]
[1770076856201,1.30134624,2350.2,2349.1,0.35197424]
[1770076856202,11.94981365,2349.9,2349.1,0.35197424]
[1770076857111,11.94981365,2349.7,2349.0,0.001]
[1770076857312,13.01391512,2349.4,2349.0,0.001]
[1770076857480,13.01391512,2349.4,2348.8,0.001]
[1770076858614,13.01391512,2349.4,2349.2,0.001]
[1770076858787,13.01391512,2349.4,2348.8,0.001]
[1770076859511,13.01391512,2349.4,2348.5,0.001]
[1770076859813,11.94981365,2349.2,2348.5,0.001]
[1770076860520,11.94981365,2349.0,2348.3,0.001]
[1770076861388,11.94981365,2348.8,2348.3,0.001]
[1770076861584,11.94981365,2348.6,2347.8,0.001]
[1770076861789,11.94981365,2348.4,2347.5,0.001]
[1770076862087,11.94981365,2348.2,2347.3,0.001]
[1770076862713,14.64984365,2348.4,2347.3,0.001]
[1770076862902,11.94981365,2348.4,2347.3,0.001]
[1770076863516,13.01441357,2348.3,2347.3,0.001]
[1770076863686,1.72728133,2348.2,2347.3,0.001]
[1770076863887,1.72728133,2348.2,2347.3,12.53151372]
[1770076865111,13.67709498,2348.2,2347.3,0.001]
[1770076865631,2.79195986,2348.2,2347.3,0.001]
[1770076865804,1.06467853,2348.2,2347.3,0.001]
[1770076866396,1.06467853,2348.2,2347.3,12.53151372]
[1770076867493,13.01449218,2348.2,2347.3,0.001]
[1770076872328,13.01449218,2348.2,2347.5,0.001]
[1770076872526,0.0011,2348.0,2347.5,0.001]
[1770076873409,0.0011,2348.0,2347.5,12.53151372]
[1770076873606,0.0011,2348.0,2347.5,13.78476509]
[1770076874708,0.0011,2348.0,2347.5,1.25425137]
[1770076874909,0.0011,2348.0,2347.5,0.001]
[1770076878527,0.0011,2348.0,2347.5,12.53151372]
[1770076878831,11.94981365,2348.8,2347.7,12.53051372]
[1770076879834,11.94981365,2348.8,2347.5,12.53151372]
[1770076880032,12.51868606,2348.6,2347.5,12.53151372]
[1770076880331,12.51868606,2348.4,2347.5,12.53151372]
[1770076881423,2.34706811,2348.5,2347.5,12.53151372]
[1770076881821,12.51868606,2348.9,2347.7,12.12748282]
[1770076882632,12.51978606,2349.2,2348.0,12.12748282]
[1770076882826,12.51868606,2349.0,2348.0,12.12748282]
[1770076883332,12.51868606,2349.0,2347.6,12.12748282]
[1770076884931,12.51868606,2349.0,2347.5,0.001]
[1770076884932,12.51868606,2349.0,2347.8,0.001]
[1770076885238,0.0011,2348.8,2347.8,12.12848282]
[1770076886133,12.51978606,2348.8,2347.8,12.12848282]
[1770076886346,13.4282932,2348.7,2347.8,12.12848282]
[1770076886541,0.90960996,2348.6,2347.8,12.12848282]
[1770076886735,12.51868606,2348.7,2347.8,12.12848282]
[1770076886921,14.68045845,2348.6,2347.8,0.001]
[1770076887233,0.91034896,2348.5,2347.8,0.001]
[1770076887441,13.77066467,2348.6,2347.8,0.001]
[1770076887741,0.91041785,2348.5,2347.8,0.001]
[1770076887938,13.77066467,2348.6,2347.8,0.001]
[1770076888122,12.51868606,2348.3,2347.8,0.001]
[1770076888451,0.91066544,2348.2,2347.8,0.001]
[1770076888641,0.91066544,2348.1,2347.8,0.001]
[1770076888831,13.65605553,2348.3,2347.8,0.001]
[1770076889015,0.91127746,2348.2,2347.8,0.001]
[1770076889225,2.25427381,2348.1,2347.8,0.001]
[1770076889540,0.91127746,2348.0,2347.8,0.001]
[1770076889734,1.34299635,2348.1,2347.8,0.001]
[1770076889942,0.91200624,2348.0,2347.8,0.001]
[1770076890143,1.34299635,2348.1,2347.8,0.001]
[1770076890324,0.91205724,2348.0,2347.8,0.001]
[1770076890526,0.22550536,2348.0,2347.8,0.001]
[1770076891245,1.13736947,2348.3,2347.8,0.001]
[1770076891544,0.91229704,2348.2,2347.8,0.001]
[1770076891743,0.91229704,2348.1,2347.8,0.001]
[1770076892040,1.13736947,2348.3,2347.8,0.001]
[1770076892212,0.91227092,2348.2,2347.8,0.001]
[1770076892412,1.13736947,2348.4,2347.8,12.12848282]
[1770076892633,1.40275463,2348.4,2347.8,12.12848282]
[1770076893716,1.13736947,2348.5,2347.8,12.12848282]
[1770076893918,1.13736947,2348.7,2347.8,12.12848282]
[1770076894123,1.13846947,2348.8,2347.8,12.12848282]
[1770076894518,0.0011,2348.8,2347.8,12.12848282]
[1770076894940,1.13846947,2348.8,2347.8,12.12848282]
[1770076895136,0.0011,2348.8,2347.8,12.12848282]
[1770076895340,0.0011,2348.8,2348.0,12.12748282]
[1770076895820,0.0011,2349.0,2348.0,12.12748282]
[1770076897625,12.51978606,2349.0,2348.0,12.12748282]
[1770076898491,13.65715553,2349.0,2347.9,1.21284828]
[1770076898653,12.51868606,2348.4,2347.3,0.001]
[1770076898842,12.51868606,2347.8,2346.7,3.1597713]
[1770076899020,0.01278445,2348.1,2346.8,12.12748282]
[1770076899021,1.13926285,2348.1,2346.8,12.12748282]
[1770076899350,1.13926285,2348.3,2347.2,12.12748282]
[1770076899549,1.36579489,2348.2,2347.6,0.001]
[1770076899943,1.13926285,2348.4,2347.6,0.001]
[1770076901353,13.65794891,2348.4,2347.6,0.001]
[1770076903180,12.51868606,2348.5,2346.7,1.88085049]
[1770076903343,0.01278445,2346.1,2344.4,3.80806413]
[1770076903532,0.2223,2345.9,2344.6,0.01278445]
[1770076903847,0.2223,2345.9,2345.2,12.12748282]
[1770076904052,0.2223,2345.9,2345.2,13.3402311]
[1770076904236,0.09837399,2345.9,2345.2,13.3402311]
[1770076904442,5.835884,2346.7,2345.3,12.12748282]
[1770076904635,11.176288,2346.5,2345.3,12.12748282]
[1770076904856,0.90917231,2346.4,2345.3,12.12748282]
[1770076905057,18.620392,2346.7,2345.4,1.33402311]
[1770076905232,18.620392,2346.7,2345.3,12.12748282]
[1770076905233,12.51868606,2346.5,2345.0,12.12748282]
[1770076905433,12.51868606,2346.2,2344.6,12.12748282]
[1770076905628,0.9091245,2346.1,2344.6,12.12748282]
[1770076905831,0.9091245,2346.0,2344.6,12.12748282]
[1770076906032,12.51868606,2346.2,2344.6,12.12748282]
[1770076906231,1.25186861,2346.1,2344.7,13.3402311]
[1770076906832,17.29223,2346.0,2344.7,13.3402311]
[1770076907034,0.90618619,2345.9,2344.7,13.3402311]
[1770076907234,4.82425533,2346.1,2344.7,13.3402311]
[1770076907738,0.90485084,2346.0,2344.7,13.3402311]
[1770076908060,12.51868606,2345.7,2344.3,12.12748282]
[1770076908270,12.51868606,2345.3,2343.7,0.1150849]
[1770076908433,12.51868606,2344.9,2343.7,0.1150849]
[1770076908639,8.14618455,2344.8,2343.7,0.1150849]
[1770076908838,3.03275772,2344.8,2343.7,12.24256772]
[1770076911357,3.03275772,2344.8,2343.7,10.1981484]
[1770076912643,3.03275772,2344.8,2343.9,0.001]
[1770076913444,3.03275772,2344.8,2343.9,12.41837551]
[1770076914571,3.03275772,2344.8,2344.1,12.43017277]
[1770076914883,3.03275772,2344.8,2344.2,1.24301728]
[1770076915379,3.03275772,2344.8,2344.2,13.66039279]
[1770076915754,0.57291062,2345.9,2344.4,12.41737551]
[1770076915961,3.099136,2345.9,2344.4,12.41737551]
[1770076916147,3.027748,2345.8,2344.4,12.41737551]
[1770076916560,12.09074349,2345.9,2344.4,12.41737551]
[1770076916769,12.09074349,2345.8,2344.4,12.41737551]
[1770076918578,12.09074349,2345.8,2344.6,12.41737551]
[1770076918876,1.20907435,2345.7,2344.7,1.24301728]
[1770076919064,3.083325,2346.0,2344.7,1.24301728]
[1770076919451,4.656889,2345.9,2344.7,1.24301728]
[1770076919652,3.77812,2345.9,2344.7,1.24301728]
[1770076920152,12.09074349,2346.0,2344.7,1.24301728]
[1770076920153,0.0103085,2345.8,2344.7,1.24301728]
[1770076920373,0.0103085,2345.8,2344.8,1.36603928]
[1770076920563,0.0103085,2345.8,2344.8,13.78341479]
[1770076921701,19.39514949,2345.7,2344.8,1.36603928]
[1770076921991,0.0103085,2345.6,2344.4,12.41737551]
[1770076922304,12.10105199,2345.6,2344.4,12.41737551]
[1770076922588,12.10105199,2345.6,2343.9,0.001]
[1770076922803,13.361224,2345.5,2344.0,12.41737551]
[1770076923004,12.09074349,2345.2,2344.1,1.24183755]
[1770076923154,12.10105199,2345.1,2344.1,1.24183755]
[1770076923356,12.10105199,2345.1,2343.9,12.41837551]
[1770076923594,0.0103085,2345.1,2343.9,12.41837551]
[1770076925254,6.395939,2345.0,2343.9,0.001]
[1770076925452,12.10105199,2344.9,2343.9,0.001]
[1770076928184,0.0103085,2344.9,2343.9,12.41837551]
[1770076928360,12.10105199,2344.9,2343.9,0.001]
[1770076929089,12.80894085,2344.9,2343.9,0.001]
[1770076929278,12.10105199,2344.9,2343.9,0.001]
[1770076931292,12.99696996,2344.8,2343.9,0.001]
[1770076931463,1.31103635,2344.7,2343.9,0.001]
[1770076931664,13.40177984,2344.7,2343.9,0.001]
[1770076932061,1.31103635,2344.7,2343.9,0.001]
[1770076932388,0.0103085,2344.7,2343.9,12.41837551]
[1770076933175,0.91060166,2344.6,2343.9,12.41837551]
[1770076933377,0.0103085,2344.5,2343.9,12.41837551]
[1770076934381,0.1024,2343.9,2342.7,0.001]
[1770076934697,13.60724485,2343.1,2341.3,12.41737551]
[1770076934874,0.9397768,2342.5,2341.4,13.66813375]
[1770076935080,13.60724485,2342.9,2341.4,13.66813375]
[1770076935284,1.56469465,2342.8,2341.4,13.66813375]
[1770076935606,12.09074349,2342.5,2341.4,1.25075824]
[1770076935778,12.09074349,2342.5,2341.0,12.41737551]
[1770076935779,4.00120569,2342.4,2341.0,12.41737551]
[1770076935977,0.0103085,2342.4,2341.2,12.50758244]
[1770076936296,0.0103085,2342.4,2341.5,12.41737551]
[1770076936467,0.0103085,2342.4,2341.8,12.41737551]
[1770076936666,2.27475204,2343.5,2342.0,0.01281065]
[1770076936667,1.51650136,2343.5,2342.0,0.01281065]
[1770076936898,0.906643,2343.4,2342.0,12.43018616]
[1770076937204,0.906643,2343.3,2342.1,13.66039413]
[1770076937375,3.962342,2343.5,2342.3,0.01281065]
[1770076937564,0.90619721,2343.4,2342.1,13.66039413]
[1770076937771,0.90619721,2343.3,2342.9,0.001]
[1770076937979,12.09074349,2343.6,2342.9,0.001]
[1770076938168,2.26697608,2343.5,2342.9,0.001]
[1770076938397,2.26697608,2343.5,2341.5,12.41737551]
[1770076938398,30.70747349,2343.2,2341.5,12.41737551]
[1770076938598,7.613744,2343.0,2341.5,12.41737551]
[1770076938900,0.90563453,2342.9,2341.6,12.43018616]
[1770076939099,7.734888,2343.1,2341.6,12.41737551]
[1770076939271,2.88729386,2343.0,2341.8,12.41737551]
[1770076939597,0.90443177,2342.9,2341.2,0.09020693]
[1770076939904,0.90437708,2342.8,2341.3,12.41737551]
[1770076940069,3.144526,2342.9,2341.4,12.98056365]
[1770076940269,11.93035973,2342.8,2341.2,13.05795993]
[1770076940497,1.19303597,2342.7,2341.4,12.98056365]
[1770076941198,9.147994,2343.4,2341.8,12.967753]
[1770076941428,6.013377,2343.2,2341.8,12.967753]
[1770076941571,2.027239,2343.0,2341.8,12.967753]
[1770076941776,8.972475,2343.3,2341.8,12.967753]
[1770076942096,2.963639,2343.1,2341.8,12.967753]
[1770076942398,0.38664947,2343.0,2341.8,12.967753]
[1770076942608,8.993475,2343.3,2341.8,12.967753]
[1770076942770,3.439773,2343.1,2341.8,12.967753]
[1770076942976,9.618116,2343.3,2341.8,12.967753]
[1770076943171,4.047326,2343.1,2341.8,12.967753]
[1770076943408,5.973404,2343.2,2341.8,12.967753]
[1770076943705,2.002239,2343.0,2341.8,12.967753]
[1770076944587,11.93035973,2342.8,2341.2,13.05795993]
[1770076944895,6.323191,2342.7,2341.2,13.05795993]
[1770076945477,5.417791,2342.6,2341.2,13.05795993]
[1770076946078,5.073091,2343.0,2341.4,12.967753]
[1770076946305,2.155962,2342.8,2341.6,12.967753]
[1770076946810,2.366796,2342.8,2341.6,12.967753]
[1770076947009,2.058662,2342.8,2341.6,12.967753]
[1770076948612,7.795609,2342.7,2341.3,12.967753]
[1770076948807,11.93035973,2342.8,2341.2,0.09020693]
[1770076948808,11.93035973,2342.6,2341.2,0.09020693]
[1770076949011,11.93035973,2342.2,2339.9,0.22248922]
[1770076949320,11.93035973,2341.8,2340.0,12.967753]
[1770076949610,4.55914,2341.4,2340.0,12.967753]
[1770076949794,1.64894997,2341.3,2340.0,12.967753]
[1770076950106,2.26398531,2341.3,2340.0,12.967753]
[1770076950304,2.83566,2341.9,2341.3,0.001]
[1770076950513,2.83566,2341.9,2340.0,12.967753]
[1770076950884,3.946541,2341.8,2340.3,0.001]
[1770076951081,2.416354,2341.8,2340.3,0.001]
[1770076951313,2.436841,2341.7,2340.3,0.001]
[1770076951514,1.43672007,2341.6,2340.3,0.001]
[1770076952538,1.43672007,2341.6,2340.3,12.968753]
[1770076952684,0.895,2342.3,2340.5,12.967753]
[1770076953029,0.0011,2342.6,2340.8,12.967753]
[1770076953516,0.0011,2342.6,2341.1,12.967753]
[1770076954798,0.0011,2342.6,2341.3,12.967753]
[1770076957842,0.0011,2342.6,2341.5,12.967753]
[1770076962217,0.0011,2342.6,2341.6,0.01281695]
[1770076962424,0.0011,2342.6,2341.7,12.967753]
[1770076965044,0.0011,2342.6,2341.5,12.968753]
[1770076967528,0.0011,2342.6,2341.7,12.967753]
[1770076967726,0.0011,2342.6,2341.8,12.967753]
[1770076971073,0.0011,2342.6,2341.5,12.02711877]
[1770076971547,0.0011,2342.6,2341.6,1.06764605]
[1770076972730,0.0011,2342.6,2341.6,13.09376482]
[1770076976052,0.0011,2342.6,2341.8,12.02711877]
[1770076976354,0.0011,2342.4,2341.8,12.02711877]
[1770076977027,0.0011,2342.4,2341.8,0.001]
[1770076978053,12.66395175,2342.4,2341.8,0.001]
[1770076980361,0.0011,2342.4,2341.8,0.001]
[1770076982167,0.91426312,2342.3,2341.8,12.02711877]
[1770076982362,0.0011,2342.4,2341.8,12.02711877]
[1770076983062,0.91433184,2342.3,2341.8,0.001]
[1770076983262,0.0011,2342.4,2341.8,12.02711877]
[1770076983765,0.0011,2342.6,2341.8,12.02711877]
[1770076983952,0.0011,2342.6,2342.0,12.02611877]
[1770076984939,0.0011,2342.8,2342.0,12.02611877]
[1770076985952,0.0011,2342.8,2342.1,1.06741812]
[1770076986137,0.0011,2342.8,2342.2,12.02611877]
[1770076987372,1.13533355,2343.4,2342.2,12.02611877]
[1770076987876,13.7981853,2343.4,2342.2,12.02611877]
[1770076988076,1.6381499,2343.3,2342.2,12.02611877]
[1770076988235,9.404847,2343.2,2341.8,0.001]
[1770076988543,12.66285175,2343.1,2342.2,1.06737121]
[1770076988963,12.66285175,2343.1,2342.2,1.0673672]
[1770076989456,1.13533355,2343.3,2342.2,13.09348597]
[1770076989769,1.13533355,2343.3,2342.2,13.09448597]
[1770076990063,1.37981853,2343.2,2342.2,13.09448597]
[1770076990440,0.0011,2342.9,2342.2,13.09448597]
[1770076991144,1.51760136,2343.6,2342.2,13.09448597]
[1770076991145,1.13643355,2343.6,2342.2,13.09448597]
[1770076991344,1.53278867,2343.6,2342.4,12.02611877]
[1770076992366,1.53278867,2343.6,2342.5,13.09335462]
[1770076994462,0.0011,2343.6,2342.5,13.09335462]
[1770076994664,12.66395175,2343.6,2342.5,1.06723585]
[1770076994992,12.66395175,2343.6,2342.4,5.16394343]
[1770076994993,12.66285175,2343.4,2342.4,0.895]
[1770076995159,12.66285175,2343.4,2342.4,1.96227346]
[1770076995349,12.66285175,2343.4,2342.4,1.96227976]
[1770076995665,13.92913692,2343.3,2342.4,1.96227976]
[1770076996045,13.92913692,2343.3,2342.5,1.06722636]
[1770076997682,13.92913692,2343.3,2342.4,1.96224639]
[1770076997970,15.70390687,2343.3,2342.2,0.001]
[1770076998153,14.65997699,2343.2,2342.2,0.001]
[1770076998675,12.66285175,2343.0,2342.2,0.001]
[1770076998882,12.66285175,2342.8,2341.8,0.001]
[1770076999049,12.66285175,2342.8,2341.9,1.06747228]
[1770076999250,12.66285175,2342.8,2341.8,0.001]
[1770076999568,0.7725181,2342.7,2341.8,0.001]
[1770077000456,12.94857102,2343.1,2341.8,12.33722413]
[1770077000777,0.91256432,2343.0,2341.8,12.33722413]
[1770077000983,12.94857102,2343.1,2341.8,12.33722413]
[1770077001281,0.91258609,2343.0,2341.8,12.33722413]
[1770077001487,12.94857102,2343.1,2341.9,1.06750928]
[1770077001777,2.83397427,2343.0,2342.0,1.76747921]
[1770077002079,0.91264252,2342.9,2342.0,1.76747921]
[1770077002258,1.92133739,2343.0,2342.0,1.76747921]
[1770077002459,0.91270538,2342.9,2342.0,1.76747921]
[1770077002660,1.92133739,2343.0,2342.0,1.76747921]
[1770077002871,2.39969739,2342.9,2342.1,0.28349885]
[1770077003079,1.48699084,2342.9,2342.1,0.28349885]
[1770077003260,1.92133739,2343.0,2342.1,12.61972298]
[1770077003463,0.895,2343.5,2342.3,12.33622413]
[1770077003658,0.70898886,2343.6,2342.3,12.33622413]
[1770077003985,0.69931593,2343.5,2342.3,12.33622413]
[1770077004181,0.0011,2342.8,2342.3,12.33622413]
[1770077004347,0.0011,2342.8,2342.4,0.85336513]
[1770077004548,0.0011,2342.8,2342.1,1.35089865]
[1770077004948,0.0011,2342.8,2342.1,0.28349885]
[1770077005886,0.0011,2342.8,2342.0,0.001]
[1770077006269,0.0011,2342.8,2342.0,1.06846096]
[1770077008259,0.0011,2342.8,2342.0,0.001]
[1770077009695,0.0011,2342.8,2342.0,12.33722413]
[1770077010404,11.88268465,2342.8,2342.0,0.001]
[1770077010705,13.77774197,2342.7,2341.8,0.001]
[1770077010866,14.39277731,2342.7,2341.5,0.001]
[1770077011067,11.88158465,2342.3,2341.5,0.001]
[1770077012162,11.88158465,2342.1,2341.5,0.001]
[1770077012360,1.29489572,2342.0,2341.5,0.001]
[1770077016196,1.29489572,2342.0,2341.7,0.001]
[1770077016591,11.88268465,2342.5,2341.7,0.001]
[1770077016792,0.0011,2342.5,2341.7,12.33722413]
[1770077018493,0.0011,2342.7,2341.9,12.33622413]
[1770077018864,0.0011,2342.7,2341.8,1.06755487]
[1770077019095,0.0011,2342.7,2341.9,12.87010156]
[1770077020479,0.0011,2342.7,2342.0,1.0674637]
[1770077020680,0.0011,2342.7,2342.0,13.40368783]
[1770077021474,11.88268465,2343.6,2342.2,12.33622413]
[1770077021797,1.29504982,2343.5,2342.4,12.33622413]
[1770077021970,0.0011,2343.6,2342.4,12.33622413]
[1770077022469,0.0011,2343.6,2342.5,13.40345998]
[1770077024372,11.88268465,2343.6,2342.5,1.06723585]
[1770077024698,11.88158465,2343.4,2342.1,1.06739643]
[1770077024996,11.88158465,2343.2,2342.2,1.0673704]
[1770077025195,11.88158465,2343.2,2342.1,1.06741488]
[1770077025709,11.88158465,2343.2,2342.1,1.06739878]
[1770077026506,11.88158465,2343.2,2342.2,1.06737125]
[1770077026805,12.94852111,2343.2,2342.0,4.26985112]
[1770077027104,14.87637249,2343.2,2342.1,0.58711923]
[1770077028311,14.87637249,2343.2,2341.7,0.001]
[1770077028312,11.88158465,2343.1,2341.7,4.2713069]
[1770077028519,11.88158465,2342.9,2341.8,1.0675333]
[1770077028810,11.88158465,2342.9,2341.9,1.06750693]
[1770077030809,0.0011,2343.0,2341.9,13.77492113]
[1770077031011,0.0011,2343.0,2342.3,12.7074142]
[1770077032702,0.0011,2343.0,2342.2,0.895]
[1770077033085,0.0011,2343.0,2342.3,1.06732698]
[1770077034027,0.0011,2343.0,2342.2,0.895]
[1770077034312,0.0011,2343.0,2342.2,1.96236842]
[1770077034516,0.0011,2343.0,2342.3,0.62320402]
[1770077036878,0.0011,2343.0,2342.3,1.69053028]
[1770077038534,0.0011,2343.0,2342.3,0.62320402]
[1770077038823,0.0011,2343.0,2342.2,1.96236776]
[1770077040219,0.0011,2343.0,2341.9,12.7074142]
[1770077040220,11.84728341,2343.0,2341.9,12.7074142]
[1770077040427,11.84618341,2342.8,2341.7,0.001]
[1770077040633,11.84618341,2342.6,2341.5,0.001]
[1770077040930,2.80095876,2342.7,2341.5,0.001]
[1770077040931,11.84618341,2342.4,2341.5,0.001]
[1770077042117,11.84618341,2342.0,2341.3,0.001]
[1770077043024,1.06741812,2342.1,2340.8,0.001]
[1770077043025,11.84618341,2341.8,2340.8,0.001]
[1770077043207,11.84618341,2341.6,2340.8,0.001]
[1770077043406,11.84618341,2341.2,2339.9,13.7758028]
[1770077043617,11.84618341,2341.2,2340.0,1.06837053]
[1770077043787,11.84618341,2341.2,2340.1,1.06832817]
[1770077044395,12.91403678,2341.2,2340.0,1.06837606]
[1770077044597,1.71851937,2341.1,2340.4,12.7074142]
[1770077044823,2.40475547,2341.7,2340.4,12.7074142]
[1770077045005,1.33712334,2341.7,2340.6,12.7074142]
[1770077046130,2.40472728,2341.7,2340.6,12.7074142]
[1770077046418,2.40472728,2341.7,2340.6,13.77547833]
[1770077046621,13.88630982,2341.6,2340.6,1.09939989]
[1770077046826,13.88630982,2341.6,2340.5,0.001]
[1770077047026,13.27127448,2341.6,2340.5,0.001]
[1770077047695,11.84618341,2341.4,2340.5,0.001]
[1770077048229,11.84618341,2341.2,2340.5,0.001]
[1770077048394,11.84618341,2341.2,2339.9,1.06842172]
[1770077048395,14.09871441,2341.1,2339.9,1.06842172]
[1770077048727,13.03080175,2341.1,2339.9,13.77583592]
[1770077049106,1.18461834,2341.1,2339.9,13.77583592]
[1770077049305,1.06776659,2341.4,2339.9,13.77583592]
[1770077049528,12.91395,2341.4,2339.9,13.77583592]
[1770077049905,11.84618341,2341.2,2339.9,13.77583592]
[1770077050407,11.84618341,2341.0,2339.9,1.06842172]
[1770077050602,11.84618341,2341.0,2339.8,1.06845466]
[1770077050824,1.35290928,2340.9,2339.8,1.06845466]
[1770077051017,1.35290928,2340.9,2339.8,13.77586886]
[1770077051923,11.84618341,2340.7,2339.5,4.27433745]
[1770077052111,2.24790928,2340.9,2339.7,1.06850766]
[1770077052112,0.895,2340.9,2339.7,1.06850766]
[1770077052318,0.895,2340.9,2339.7,13.77592062]
[1770077052319,1.06801093,2340.8,2339.7,13.77592062]
[1770077052501,12.91413479,2341.0,2339.7,13.77592062]
[1770077052701,1.29141348,2340.9,2339.9,12.7074142]
[1770077052913,1.06795138,2341.0,2339.9,12.7074142]
[1770077053430,1.06795138,2341.0,2339.8,1.80501169]
[1770077053431,2.86839,2340.9,2339.8,1.80501169]
[1770077053654,11.84618341,2340.9,2339.7,13.77592062]
[1770077053803,7.24641451,2341.3,2339.7,13.77592062]
[1770077054112,2.5385,2341.2,2339.7,13.77592062]
[1770077054309,12.91396626,2341.3,2339.7,13.77592062]
[1770077054533,0.896,2341.4,2339.7,13.77592062]
[1770077054709,1.96376975,2341.4,2339.9,12.7074142]
[1770077054919,13.80995316,2341.4,2339.9,12.7074142]
[1770077055322,11.84618341,2341.2,2339.9,12.7074142]
[1770077055534,11.84618341,2341.0,2339.7,13.77592062]
[1770077056609,11.84618341,2341.3,2340.0,12.7074142]
[1770077056845,0.51672929,2341.2,2340.1,1.27084142]
[1770077057013,0.51672929,2341.2,2340.1,13.97825562]
[1770077057418,1.0677864,2341.3,2340.1,13.97825562]
[1770077057742,0.896,2341.4,2340.1,13.97825562]
[1770077057943,0.0011,2341.5,2340.1,13.97825562]
[1770077058244,11.84728341,2341.5,2340.1,13.97825562]
[1770077058416,11.84728341,2341.5,2340.2,1.06828476]
[1770077058621,1.18472834,2341.4,2340.3,13.36864072]
[1770077059514,0.0011,2341.5,2340.3,13.36864072]
[1770077060039,13.1354258,2341.5,2340.3,0.66122652]